lending/lending_fUSD_20241005
["ID","MTS","AMOUNT","RATE_DAILY","PERIOD"]
[339908754,1728147193985,-637.05,0.00043698,120]
[339908755,1728147193994,-1285.68,0.00043698,120]
[339908756,1728147194004,-503.25,0.00043698,120]
[339908757,1728147194013,-500.0,0.00043698,120]
[339908758,1728147194023,-938.91,0.00043698,120]
[339908759,1728147194032,-500.0,0.00043698,120]
[339908760,1728147194042,-1214.24,0.00043698,120]
[339908761,1728147194055,-669.13,0.00043698,120]
[339908762,1728147194064,-950.76,0.00043698,120]
[339908763,1728147194073,-1555.77,0.00043698,120]
[339908764,1728147194083,-500.0,0.00043698,120]
[339908765,1728147194092,-1046.87,0.00043698,120]
[339908766,1728147194101,-766.5,0.00043698,120]
[339908767,1728147194111,-1076.33,0.00043698,120]
[339908768,1728147194120,-500.0,0.00043698,120]
[339908769,1728147194129,-773.6,0.00043698,120]
[339908770,1728147194139,-956.46,0.00043698,120]
[339908771,1728147194149,-500.0,0.00043698,120]
[339908772,1728147194158,-1442.35,0.00043698,120]
[339908773,1728147194167,-1211.84,0.00043698,120]
[339908774,1728147194176,-500.0,0.00043698,120]
[339908775,1728147194185,-658.69,0.00043698,120]
[339908776,1728147194195,-1361.72,0.00043698,24]
[339908777,1728147194205,-500.0,0.00043698,120]
[339908778,1728147194215,-1120.5,0.00043698,120]
[339908779,1728147194225,-500.0,0.00043698,120]
[339908780,1728147194235,-1128.3,0.00043698,120]
[339908781,1728147194245,-500.0,0.00043698,120]
[339908782,1728147194254,-723.77,0.00043698,120]
[339908783,1728147194264,-627.25,0.00043698,120]
[339908784,1728147194274,-1143.9,0.00043698,120]
[339908785,1728147194283,-502.75,0.00043698,120]
[339908786,1728147194293,-1054.07,0.00043698,120]
[339908787,1728147194305,-1458.38,0.00043698,120]
[339908788,1728147194314,-680.05,0.00043698,120]
[339908789,1728147194324,-2308.66,0.00043698,120]
[339908790,1728147194333,-526.17,0.00043698,120]
[339908791,1728147194343,-958.76,0.00043698,120]
[339908792,1728147194353,-500.0,0.00043698,120]
[339908793,1728147194362,-521.35,0.00043698,120]
[339908794,1728147194372,-500.0,0.00043698,120]
[339908795,1728147194381,-772.75,0.00043698,120]
[339908796,1728147194391,-957.22,0.00043698,120]
[339908797,1728147194401,-1182.56,0.00043698,120]
[339908798,1728147194482,-658.49,0.00043698,120]
[339908799,1728147194494,-500.0,0.00043698,120]
[339908800,1728147194504,-500.0,0.00043698,120]
[339908801,1728147194514,-523.91088821,0.00043698,120]
[339908802,1728147194524,-764.47,0.00043698,120]
[339908803,1728147194534,-1230.05,0.00043698,120]
[339908804,1728147194544,-500.0,0.00043698,120]
[339908805,1728147194556,-872.43,0.00043698,120]
[339908806,1728147194566,-611.65,0.00043698,120]
[339908807,1728147194576,-842.7,0.00043698,120]
[339908808,1728147194586,-500.0,0.00043698,120]
[339908809,1728147194595,-821.45,0.00043698,120]
[339908810,1728147194605,-1020.54,0.00043698,120]
[339908811,1728147194615,-508.95,0.00043698,120]
[339908812,1728147194625,-500.0,0.00043698,120]
[339908813,1728147194635,-500.0,0.00043698,120]
[339908814,1728147194645,-1095.31,0.00043698,120]
[339908815,1728147194655,-500.0,0.00043698,120]
[339908816,1728147194665,-1129.38,0.00043698,120]
[339908817,1728147194675,-500.0,0.00043698,120]
[339908818,1728147194685,-500.0,0.00043698,120]
[339908819,1728147194695,-500.0,0.00043698,120]
[339908820,1728147194705,-500.0,0.00043698,120]
[339908821,1728147194715,-500.0,0.00043698,120]
[339908822,1728147194724,-794.7,0.00043698,120]
[339908823,1728147194734,-830.85,0.00043698,120]
[339908824,1728147194745,-500.0,0.00043698,120]
[339908825,1728147194755,-1027.89,0.00043698,120]
[339908826,1728147194765,-1487.21,0.00043698,120]
[339908827,1728147194775,-1056.64,0.00043698,120]
[339908828,1728147194785,-500.0,0.00043698,120]
[339908829,1728147194795,-301.75309973,0.00043698,120]
[339908830,1728147194805,-500.0,0.00043698,120]
[339908831,1728147194815,-966.23,0.00043698,120]
[339908832,1728147194824,-1402.9,0.00043698,120]
[339908833,1728147194834,-155.637596,0.00043698,120]
[339908834,1728147194843,-500.0,0.00043698,120]
[339908835,1728147194853,-181.12136944,0.00043698,120]
[339908836,1728147194863,-500.0,0.00043698,120]
[339908837,1728147194873,-208.60782918,0.00043698,120]
[339908838,1728147194883,-605.78,0.00043698,120]
[339908839,1728147194892,-500.0,0.00043698,120]
[339908840,1728147194903,-534.83,0.00043698,120]
[339908841,1728147194915,-1181.15,0.00043698,120]
[339908842,1728147194926,-508.92073287,0.00043698,120]
[339908843,1728147194936,-567.65,0.00043698,120]
[339908844,1728147194948,-540.58,0.00043698,120]
[339908845,1728147194958,-602.72,0.00043698,120]
[339908846,1728147194968,-942.98,0.00043698,120]
[339908847,1728147194978,-500.0,0.00043698,120]
[339908848,1728147194988,-500.0,0.00043698,120]
[339908849,1728147194998,-739.94,0.00043698,120]
[339908850,1728147195008,-500.0,0.00043698,120]
[339908851,1728147195018,-1122.04,0.00043698,120]
[339908852,1728147195028,-1176.15,0.00043698,120]
[339908853,1728147195037,-960.92,0.00043698,120]
[339908854,1728147195047,-500.0,0.00043698,120]
[339908855,1728147195058,-1087.37,0.00043698,120]
[339908856,1728147195067,-500.0,0.00043698,120]
[339908857,1728147195077,-548.14,0.00043698,120]
[339908858,1728147195087,-500.0,0.00043698,120]
[339908859,1728147195096,-500.0,0.00043698,120]
[339908860,1728147195106,-255.38607,0.00043698,120]
[339908861,1728147195116,-894.57,0.00043698,120]
[339908862,1728147195126,-808.84,0.00043698,120]
[339908863,1728147195135,-500.0,0.00043698,120]
[339908864,1728147195145,-744.22,0.00043698,120]
[339908865,1728147195155,-795.88,0.00043698,120]
[339908866,1728147195163,-1106.31,0.00043698,120]
[339908867,1728147195172,-500.0,0.00043698,120]
[339908868,1728147195182,-719.91,0.00043698,120]
[339908869,1728147195192,-500.0,0.00043698,120]
[339908870,1728147195202,-912.73,0.00043698,120]
[339908871,1728147195211,-519.73,0.00043698,120]
[339908872,1728147195221,-1177.68,0.00043698,120]
[339908873,1728147195230,-780.08,0.00043698,14]
[339908874,1728147195240,-789.28,0.00043698,120]
[339908875,1728147195250,-669.75,0.00043698,120]
[339908876,1728147195259,-750.93,0.00043698,120]
[339908877,1728147195269,-704.169704,0.00043698,120]
[339908878,1728147195278,-1092.22,0.00043698,120]
[339908879,1728147195288,-535.24,0.00043698,120]
[339908880,1728147195299,-1378.36,0.00043698,120]
[339908881,1728147195309,-745.48,0.00043698,120]
[339908882,1728147195319,-500.0,0.00043698,120]
[339908883,1728147195329,-1306.31,0.00043698,120]
[339908884,1728147195339,-500.0,0.00043698,120]
[339908885,1728147195349,-524.51,0.00043698,120]
[339908886,1728147195359,-500.0,0.00043698,120]
[339908887,1728147195368,-513.93,0.00043698,120]
[339908888,1728147195378,-645.77,0.00043698,120]
[339908889,1728147195387,-833.87,0.00043698,120]
[339908890,1728147195397,-500.0,0.00043698,120]
[339908891,1728147195406,-1307.93,0.00043698,120]
[339908892,1728147195415,-1199.16,0.00043698,120]
[339908893,1728147195424,-500.0,0.00043698,120]
[339908894,1728147195433,-552.63352931,0.00043698,120]
[339908895,1728147195443,-500.0,0.00043698,120]
[339908896,1728147195452,-366.53099794,0.00043698,120]
[339908897,1728147195465,-985.84,0.00043698,120]
[339908898,1728147195474,-1049.3,0.00043698,120]
[339908899,1728147195483,-1294.19,0.00043698,120]
[339908900,1728147195493,-793.27,0.00043698,120]
[339908901,1728147195503,-515.69470287,0.00043698,120]
[339908902,1728147195513,-500.0,0.00043698,120]
[339908903,1728147195523,-500.0,0.00043698,120]
[339908904,1728147195533,-2888.1,0.00043698,120]
[339908905,1728147195544,-687.14,0.00043698,120]
[339908906,1728147195557,-989.98,0.00043698,120]
[339908907,1728147195566,-500.0,0.00043698,120]
[339908908,1728147195575,-1432.95,0.00043698,120]
[339908909,1728147195585,-550.68,0.00043698,120]
[339908910,1728147195595,-724.21,0.00043698,120]
[339908911,1728147195604,-543.28,0.00043698,120]
[339908912,1728147195613,-500.0,0.00043698,120]
[339908913,1728147195623,-753.39,0.00043698,120]
[339908914,1728147195632,-807.23,0.00043698,120]
[339908915,1728147195641,-500.0,0.00043698,120]
[339908916,1728147195652,-708.64,0.00043698,120]
[339908917,1728147195661,-562.5,0.00043698,120]
[339908918,1728147195670,-394.77931655,0.00043698,120]
[339908919,1728147195680,-500.0,0.00043698,120]
[339908920,1728147195690,-1195.82,0.00043698,120]
[339908921,1728147195700,-905.32,0.00043698,7]
[339908922,1728147195709,-1289.36,0.00043698,120]
[339908923,1728147195718,-968.05,0.00043698,120]
[339908924,1728147195728,-687.72,0.00043698,120]
[339908925,1728147195738,-1417.19,0.00043698,120]
[339908926,1728147195747,-763.68,0.00043698,120]
[339908927,1728147195756,-500.0,0.00043698,120]
[339908928,1728147195766,-1687.35,0.00043698,120]
[339908929,1728147195776,-888.0,0.00043698,120]
[339908930,1728147195785,-785.36,0.00043698,120]
[339908931,1728147195795,-547.78609005,0.00043698,120]
[339908932,1728147195809,-500.0,0.00043698,120]
[339908933,1728147195818,-582.36,0.00043698,120]
[339908934,1728147195827,-1179.64,0.00043698,120]
[339908935,1728147195837,-643.53,0.00043698,120]
[339908936,1728147195846,-1536.92,0.00043698,120]
[339908937,1728147195856,-1213.33,0.00043698,120]
[339908938,1728147195866,-533.33,0.00043698,120]
[339908939,1728147195876,-711.86,0.00043698,120]
[339908940,1728147195885,-1142.18,0.00043698,120]
[339908941,1728147195895,-507.62219878,0.00043698,120]
[339908942,1728147195904,-786.32,0.00043698,120]
[339908943,1728147195914,-1479.11,0.00043698,120]
[339908944,1728147195923,-500.0,0.00043698,120]
[339908945,1728147195933,-649.26,0.00043698,120]
[339908946,1728147195943,-903.52,0.00043698,120]
[339908947,1728147195952,-500.0,0.00043698,120]
[339908948,1728147195962,-540.88625041,0.00043698,120]
[339908949,1728147195972,-500.0,0.00043698,120]
[339908950,1728147195981,-915.1,0.00043698,120]
[339908951,1728147195990,-642.95,0.00043698,120]
[339908952,1728147196000,-500.0,0.00043698,120]
[339908953,1728147196010,-500.0,0.00043698,120]
[339908954,1728147196020,-1032.8,0.00043698,120]
[339908955,1728147196029,-931.55,0.00043698,120]
[339908956,1728147196039,-500.0,0.00043698,120]
[339908957,1728147196050,-1521.03,0.00043698,120]
[339908958,1728147196059,-500.0,0.00043698,120]
[339908959,1728147196069,-901.49,0.00043698,120]
[339908960,1728147196078,-500.0,0.00043698,120]
[339908961,1728147196088,-1061.61,0.00043698,120]
[339908962,1728147196097,-1304.21,0.00043698,120]
[339908963,1728147196107,-701.97,0.00043698,120]
[339908964,1728147196117,-1011.56,0.00043698,120]
[339908965,1728147196128,-534.36,0.00043698,120]
[339908966,1728147196137,-589.66,0.00043698,120]
[339908967,1728147196147,-500.0,0.00043698,120]
[339908968,1728147196158,-512.82,0.00043698,120]
[339908969,1728147196168,-501.82602372,0.00043698,120]
[339908970,1728147196177,-1198.94,0.00043698,120]
[339908971,1728147196186,-243.26630444,0.00043698,120]
[339908972,1728147196196,-836.31,0.00043698,120]
[339908973,1728147196205,-714.05,0.00043698,120]
[339908974,1728147196214,-908.97,0.00043698,120]
[339908975,1728147196224,-787.9,0.00043698,120]
[339908976,1728147196234,-530.83,0.00043698,120]
[339908977,1728147196244,-1485.49,0.00043698,120]
[339908978,1728147196254,-204.92173689,0.00043698,120]
[339908979,1728147196264,-500.0,0.00043698,120]
[339908980,1728147196272,-763.04,0.00043698,120]
[339908981,1728147196281,-518.08,0.00043698,120]
[339908982,1728147196291,-500.0,0.00043698,120]
[339908983,1728147196302,-500.0,0.00043698,120]
[339908984,1728147196312,-612.29,0.00043698,120]
[339908985,1728147196322,-563.43,0.00043698,120]
[339908986,1728147196332,-500.0,0.00043698,120]
[339908987,1728147196342,-822.39,0.00043698,120]
[339908988,1728147196351,-500.0,0.00043698,120]
[339908989,1728147196360,-1306.65,0.00043698,120]
[339908990,1728147196370,-1233.21,0.00043698,120]
[339908991,1728147196380,-868.45,0.00043698,120]
[339908992,1728147196390,-500.0,0.00043698,120]
[339908993,1728147196400,-732.59,0.00043698,120]
[339908994,1728147196409,-583.48,0.00043698,120]
[339908995,1728147196418,-1321.45,0.00043698,120]
[339908996,1728147196427,-528.8,0.00043698,120]
[339908997,1728147196437,-658.55,0.00043698,120]
[339908998,1728147196447,-500.0,0.00043698,120]
[339908999,1728147196456,-500.0,0.00043698,120]
[339909000,1728147196469,-500.0,0.00043698,120]
[339909001,1728147196479,-500.0,0.00043698,120]
[339909002,1728147196488,-993.81,0.00043698,120]
[339909003,1728147196497,-500.0,0.00043698,120]
[339909004,1728147196507,-500.0,0.00043698,120]
[339909005,1728147196516,-517.71650811,0.00043698,120]
[339909006,1728147196525,-500.0,0.00043698,120]
[339909007,1728147196534,-1392.91,0.00043698,120]
[339909008,1728147196543,-500.0,0.00043698,120]
[339909009,1728147196555,-694.83,0.00043698,120]
[339909010,1728147196563,-500.0,0.00043698,120]
[339909011,1728147196573,-953.14,0.00043698,120]
[339909012,1728147196582,-502.29950217,0.00043698,120]
[339909013,1728147196591,-500.0,0.00043698,120]
[339909014,1728147196601,-501.81532438,0.00043698,120]
[339909015,1728147196611,-698.41,0.00043698,120]
[339909016,1728147196621,-771.14,0.00043698,120]
[339909017,1728147196630,-885.57,0.00043698,120]
[339909018,1728147196640,-1011.8,0.00043698,120]
[339909019,1728147196650,-702.92,0.00043698,120]
[339909020,1728147196659,-563.02,0.00043698,120]
[339909021,1728147196669,-1565.99,0.00043698,120]
[339909022,1728147196679,-1294.33,0.00043698,120]
[339909023,1728147196688,-918.37,0.00043698,120]
[339909024,1728147196697,-690.04,0.00043698,120]
[339909025,1728147196707,-500.0,0.00043698,120]
[339909026,1728147196717,-666.23,0.00043698,120]
[339909027,1728147196727,-894.45,0.00043698,120]
[339909028,1728147196736,-527.52882984,0.00043698,120]
[339909029,1728147196746,-500.0,0.00043698,120]
[339909030,1728147196756,-500.0,0.00043698,120]
[339909031,1728147196766,-500.0,0.00043698,120]
[339909032,1728147196776,-762.45,0.00043698,120]
[339909033,1728147196787,-588.86,0.00043698,120]
[339909034,1728147196799,-1037.04,0.00043698,120]
[339909035,1728147196811,-729.96,0.00043698,120]
[339909036,1728147196820,-500.0,0.00043698,120]
[339909037,1728147196830,-500.0,0.00043698,120]
[339909038,1728147196839,-922.09,0.00043698,120]
[339909039,1728147196849,-500.0,0.00043698,120]
[339909040,1728147196858,-500.0,0.00043698,120]
[339909041,1728147196868,-500.0,0.00043698,120]
[339909042,1728147196877,-1207.02,0.00043698,120]
[339909043,1728147196887,-502.40040893,0.00043698,120]
[339909044,1728147196897,-1060.1,0.00043698,120]
[339909045,1728147196907,-500.0,0.00043698,120]
[339909046,1728147196917,-500.0,0.00043698,120]
[339909047,1728147196926,-501.25,0.00043698,120]
[339909048,1728147196935,-668.81,0.00043698,120]
[339909049,1728147196945,-500.0,0.00043698,120]
[339909050,1728147196954,-525.19,0.00043698,120]
[339909051,1728147196964,-500.0,0.00043698,120]
[339909052,1728147196973,-500.0,0.00043698,120]
[339909053,1728147196982,-500.0,0.00043698,120]
[339909054,1728147196991,-648.61,0.00043698,120]
[339909055,1728147197000,-502.13142692,0.00043698,120]
[339909056,1728147197009,-1480.12,0.00043698,120]
[339909057,1728147197018,-502.41419129,0.00043698,120]
[339909058,1728147197028,-1830.42,0.00043698,120]
[339909059,1728147197038,-500.0,0.00043698,120]
[339909060,1728147197048,-1094.29,0.00043698,120]
[339909061,1728147197057,-692.2,0.00043698,120]
[339909062,1728147197067,-1171.31,0.00043698,120]
[339909063,1728147197076,-500.0,0.00043698,120]
[339909064,1728147197086,-980.64,0.00043698,120]
[339909065,1728147197095,-993.33,0.00043698,120]
[339909066,1728147197104,-500.0,0.00043698,120]
[339909067,1728147197114,-1156.11,0.00043698,120]
[339909068,1728147197123,-500.0,0.00043698,120]
[339909069,1728147197132,-759.97,0.00043698,120]
[339909070,1728147197142,-500.0,0.00043698,120]
[339909071,1728147197151,-504.21058663,0.00043698,120]
[339909072,1728147197161,-610.78060651,0.00043698,120]
[339909073,1728147197171,-809.87,0.00043698,120]
[339909074,1728147197181,-500.0,0.00043698,120]
[339909075,1728147197191,-500.0,0.00043698,120]
[339909076,1728147197200,-1128.79,0.00043698,120]
[339909077,1728147197210,-500.0,0.00043698,120]
[339909078,1728147197219,-620.59,0.00043698,120]
[339909079,1728147197229,-1212.72,0.00043698,120]
[339909080,1728147197238,-500.0,0.00043698,120]
[339909081,1728147197247,-1002.95,0.00043698,120]
[339909082,1728147197256,-737.61,0.00043698,120]
[339909083,1728147197266,-500.0,0.00043698,120]
[339909084,1728147197275,-524.73,0.00043698,120]
[339909085,1728147197285,-1377.95,0.00043698,120]
[339909086,1728147197294,-1543.57,0.00043698,120]
[339909087,1728147197306,-813.84,0.00043698,120]
[339909088,1728147197315,-500.0,0.00043698,120]
[339909089,1728147197327,-531.1,0.00043698,120]
[339909090,1728147197337,-500.0,0.00043698,120]
[339909091,1728147197347,-500.0,0.00043698,120]
[339909092,1728147197357,-961.07,0.00043698,120]
[339909093,1728147197366,-784.98,0.00043698,120]
[339909094,1728147197376,-500.0,0.00043698,120]
[339909095,1728147197385,-917.69,0.00043698,120]
[339909096,1728147197395,-711.97,0.00043698,120]
[339909097,1728147197405,-519.98688741,0.00043698,120]
[339909098,1728147197415,-500.0,0.00043698,120]
[339909099,1728147197425,-906.22,0.00043698,120]
[339909100,1728147197435,-782.36,0.00043698,120]
[339909101,1728147197444,-677.3,0.00043698,120]
[339909102,1728147197454,-522.75581586,0.00043698,120]
[339909103,1728147197463,-500.0,0.00043698,120]
[339909104,1728147197473,-910.94,0.00043698,120]
[339909105,1728147197484,-1205.88,0.00043698,120]
[339909106,1728147197495,-1344.47,0.00043698,120]
[339909107,1728147197504,-814.32,0.00043698,120]
[339909108,1728147197514,-336.83818795,0.00043698,120]
[339909109,1728147197523,-542.61,0.00043698,120]
[339909110,1728147197534,-500.0,0.00043698,120]
[339909111,1728147197544,-948.43,0.00043698,120]
[339909112,1728147197555,-500.0,0.00043698,120]
[339909113,1728147197565,-676.76,0.00043698,120]
[339909114,1728147197575,-1066.49,0.00043698,120]
[339909115,1728147197585,-500.0,0.00043698,120]
[339909116,1728147197595,-1541.44,0.00043698,120]
[339909117,1728147197605,-500.0,0.00043698,120]
[339909118,1728147197614,-500.0,0.00043698,120]
[339909119,1728147197623,-519.30764066,0.00043698,120]
[339909120,1728147197633,-500.0,0.00043698,120]
[339909121,1728147197642,-513.49559058,0.00043698,120]
[339909122,1728147197651,-500.0,0.00043698,120]
[339909123,1728147197661,-659.62,0.00043698,120]
[339909124,1728147197671,-1320.61,0.00043698,120]
[339909125,1728147197682,-500.0,0.00043698,120]
[339909126,1728147197692,-502.73682764,0.00043698,120]
[339909127,1728147197702,-500.0,0.00043698,120]
[339909128,1728147197712,-1392.32,0.00043698,120]
[339909129,1728147197723,-1117.39,0.00043698,120]
[339909130,1728147197733,-500.0,0.00043698,120]
[339909131,1728147197743,-500.0,0.00043698,120]
[339909132,1728147197753,-500.0,0.00043698,120]
[339909133,1728147197764,-500.0,0.00043698,120]
[339909134,1728147197773,-1450.24,0.00043698,120]
[339909135,1728147197784,-995.8,0.00043698,120]
[339909136,1728147197794,-2170.1,0.00043698,120]
[339909137,1728147197805,-500.0,0.00043698,120]
[339909138,1728147197816,-1452.19,0.00043698,120]
[339909139,1728147197826,-500.0,0.00043698,120]
[339909140,1728147197836,-877.02,0.00043698,120]
[339909141,1728147197846,-182.03,0.00043698,120]
[339909142,1728147197856,-500.0,0.00043698,120]
[339909143,1728147197866,-746.73,0.00043698,120]
[339909144,1728147197877,-1409.59,0.00043698,120]
[339909145,1728147197887,-1020.04,0.00043698,120]
[339909146,1728147197897,-679.22,0.00043698,120]
[339909147,1728147197906,-666.18,0.00043698,120]
[339909148,1728147197916,-569.48,0.00043698,120]
[339909149,1728147197926,-980.44,0.00043698,120]
[339909150,1728147197937,-1089.28,0.00043698,120]
[339909151,1728147197947,-568.81,0.00043698,120]
[339909152,1728147197957,-1354.9,0.00043698,120]
[339909153,1728147197967,-500.0,0.00043698,120]
[339909154,1728147197978,-560.34326599,0.00043698,120]
[339909155,1728147197988,-3092.09,0.00043698,120]
[339909156,1728147197997,-238.07813785,0.00043698,120]
[339909157,1728147198008,-1673.25,0.00043698,120]
[339909158,1728147198018,-1117.04,0.00043698,120]
[339909159,1728147198028,-515.62726206,0.00043698,120]
[339909160,1728147198037,-1400.9,0.00043698,120]
[339909161,1728147198047,-500.0,0.00043698,120]
[339909162,1728147198057,-521.3,0.00043698,120]
[339909163,1728147198067,-500.0,0.00043698,120]
[339909164,1728147198076,-500.0,0.00043698,120]
[339909165,1728147198086,-957.32,0.00043698,120]
[339909166,1728147198096,-500.0,0.00043698,120]
[339909167,1728147198106,-613.27,0.00043698,120]
[339909168,1728147198116,-1461.62,0.00043698,120]
[339909169,1728147198126,-551.78,0.00043698,120]
[339909170,1728147198137,-532.54,0.00043698,120]
[339909171,1728147198147,-500.0,0.00043698,120]
[339909172,1728147198157,-815.17,0.00043698,120]
[339909173,1728147198167,-833.62,0.00043698,120]
[339909174,1728147198177,-749.79,0.00043698,120]
[339909175,1728147198187,-973.8,0.00043698,120]
[339909176,1728147198197,-500.0,0.00043698,120]
[339909177,1728147198207,-500.0,0.00043698,120]
[339909178,1728147198218,-500.0,0.00043698,120]
[339909179,1728147198228,-500.0,0.00043698,120]
[339909180,1728147198238,-412.78,0.00043698,120]
[339909181,1728147198247,-500.0,0.00043698,120]
[339909182,1728147198258,-595.63,0.00043698,120]
[339909183,1728147198268,-895.17,0.00043698,120]
[339909184,1728147198277,-716.85,0.00043698,120]
[339909185,1728147198287,-552.5,0.00043698,120]
[339909186,1728147198297,-538.69,0.00043698,120]
[339909187,1728147198308,-500.0,0.00043698,120]
[339909188,1728147198319,-500.0,0.00043698,120]
[339909189,1728147198329,-734.46,0.00043698,120]
[339909190,1728147198339,-500.0,0.00043698,120]
[339909191,1728147198349,-433.35222515,0.00043698,120]
[339909192,1728147198359,-500.0,0.00043698,120]
[339909193,1728147198369,-744.23,0.00043698,120]
[339909194,1728147198379,-404.38917378,0.00043698,120]
[339909195,1728147198390,-544.13,0.00043698,120]
[339909196,1728147198401,-1043.16,0.00043698,120]
[339909197,1728147198410,-649.58,0.00043698,120]
[339909198,1728147198421,-526.24,0.00043698,120]
[339909199,1728147198431,-500.0,0.00043698,120]
[339909200,1728147198441,-500.0,0.00043698,120]
[339909201,1728147198451,-1194.16,0.00043698,120]
[339909202,1728147198461,-500.0,0.00043698,120]
[339909203,1728147198471,-837.39,0.00043698,120]
[339909204,1728147198482,-500.0,0.00043698,120]
[339909205,1728147198492,-500.0,0.00043698,120]
[339909206,1728147198503,-612.42,0.00043698,120]
[339909207,1728147198513,-510.48,0.00043698,120]
[339909208,1728147198523,-1245.75,0.00043698,120]
[339909209,1728147198533,-500.0,0.00043698,120]
[339909210,1728147198543,-896.41,0.00043698,120]
[339909211,1728147198555,-570.6,0.00043698,120]
[339909212,1728147198566,-912.71,0.00043698,120]
[339909213,1728147198576,-935.17,0.00043698,120]
[339909214,1728147198587,-500.0,0.00043698,120]
[339909215,1728147198597,-1275.76,0.00043698,120]
[339909216,1728147198608,-500.18,0.00043698,120]
[339909217,1728147198618,-712.54,0.00043698,120]
[339909218,1728147198628,-500.0,0.00043698,120]
[339909219,1728147198638,-713.19,0.00043698,120]
[339909220,1728147198648,-645.72,0.00043698,120]
[339909221,1728147198659,-1057.7,0.00043698,120]
[339909222,1728147198669,-500.0,0.00043698,120]
[339909223,1728147198680,-749.26,0.00043698,120]
[339909224,1728147198690,-1037.04,0.00043698,120]
[339909225,1728147198701,-688.31,0.00043698,120]
[339909226,1728147198711,-500.0,0.00043698,120]
[339909227,1728147198722,-700.86,0.00043698,120]
[339909228,1728147198733,-534.2,0.00043698,120]
[339909229,1728147198743,-607.13,0.00043698,120]
[339909230,1728147198753,-997.54,0.00043698,120]
[339909231,1728147198764,-500.98,0.00043698,120]
[339909232,1728147198774,-1204.65,0.00043698,120]
[339909233,1728147198784,-500.0,0.00043698,120]
[339909234,1728147198794,-539.24,0.00043698,120]
[339909235,1728147198805,-542.57,0.00043698,120]
[339909236,1728147198815,-500.0,0.00043698,120]
[339909237,1728147198825,-1294.2,0.00043698,120]
[339909238,1728147198835,-500.0,0.00043698,30]
[339909239,1728147198846,-6114.95,0.00043698,120]
[339909240,1728147198856,-610.97,0.00043698,120]
[339909241,1728147198866,-1197.02,0.00043698,120]
[339909242,1728147198876,-801.24,0.00043698,120]
[339909243,1728147198886,-533.72,0.00043698,120]
[339909244,1728147198895,-500.0,0.00043698,120]
[339909245,1728147198905,-500.0,0.00043698,120]
[339909246,1728147198915,-1102.84,0.00043698,120]
[339909247,1728147198924,-973.61,0.00043698,120]
[339909248,1728147198934,-743.21,0.00043698,120]
[339909249,1728147198943,-616.19,0.00043698,120]
[339909250,1728147198953,-500.0,0.00043698,120]
[339909251,1728147198963,-344.8,0.00043698,120]
[339909252,1728147198973,-1463.87,0.00043698,120]
[339909253,1728147198983,-500.0,0.00043698,120]